Cogmind - Beta 12 @@@ ROGUE MODE // 2023.09.18 @ 10:13:01 Player: DuckBoy Result: Destroyed by as-15958 with Assembled Heavy Rifle Performance ------------- Evolutions (2) 1000 Regions Visited (6) 1200 Robots Destroyed (61) 305 Value Destroyed (1455) 1455 Prototype IDs (32) 640 Alien Tech Used (0) 0 Bonus (500) 500 TOTAL SCORE: 5100 Bonus ------- Entered Garrisons 200 Aligned with FarCom 300 Cogmind --------- Core Integrity 0/550 Matter 66/300 Energy 89/100 System Corruption 0% Temperature Cool (0) Movement Core (100) Ox1 Location -8/Garrison Parts ------- > --- POWER (1) -------- (None) > --- PROPULSION (2) --- (None) > --- UTILITY (6) ------ (None) > --- WEAPON (2) ------- Missile Launcher > --- INVENTORY (5) ---- Armored Huge Wheel Huge Storage Unit Peak State ------------ > --- POWER ------------ Improved Ion Engine > --- PROPULSION ------- Armored Huge Wheel > --- UTILITY ---------- Improved Heat Sink Huge Storage Unit Structural Scanner Targeting Computer Hardened Medium Armor Plating Hardlight Generator > --- WEAPON ----------- Heavy EM Shotgun Enhanced Autogun > --- INVENTORY -------- Armored Treads Compact Wheel Compact Wheel Armored Huge Wheel Improved Heat Sink Huge Storage Unit Huge Storage Unit Humpback Structural Scanner Hacking Suite Hacking Suite Hacking Suite System Shield System Shield Pulse Rifle Advanced Beam Rifle Autogun High-powered Shotgun Gauss Rifle Missile Launcher Missile Launcher Missile Launcher Improved Datajack [Rating: 36] Favorites ----------- Power Ion Engine Engine Ion Engine Propulsion Compact Wheel Treads Light Treads Wheel Compact Wheel Utility Improved Terrain Scanner Device Improved Terrain Scanner Storage Huge Storage Unit Processor Targeting Computer Protection Light Armor Plating Weapon Light Assault Rifle Energy Gun Improved Medium Laser Ballistic Gun Light Assault Rifle Launcher Rocket Launcher Build | -11 -10 -10 -10 -9 -8 -8 ------- Run | Jun Mat Min Exi Min Mat Gar Slots Evolved 4 | . . . . . 4 . Power . | . . . . . . . Propulsion . | . . . . . . . Utility 4 | . . . . . 4 . Weapon . | . . . . . . . Parts Attached 96 | 7 9 . 2 6 67 5 Power 6 | 1 1 . 1 1 2 . Engine 6 | 1 1 . 1 1 2 . Core . | . . . . . . . Reactor . | . . . . . . . Propulsion 47 | 2 3 . . 3 39 . Treads 20 | 2 . . . . 18 . Leg . | . . . . . . . Wheel 27 | . 3 . . 3 21 . Hover . | . . . . . . . Flight . | . . . . . . . Utility 18 | 2 2 . 1 . 13 . Device 7 | 1 . . . . 6 . Storage 5 | 1 2 . 1 . 1 . Processor 3 | . . . . . 3 . Hackware . | . . . . . . . Protection 3 | . . . . . 3 . Artifact . | . . . . . . . Weapon 25 | 2 3 . . 2 13 5 Energy Gun 5 | . . . . . 4 1 Energy Cannon . | . . . . . . . Ballistic Gun 12 | 2 2 . . 1 6 1 Ballistic Cannon . | . . . . . . . Launcher 8 | . 1 . . 1 3 3 Special Weapon . | . . . . . . . Impact Weapon . | . . . . . . . Slashing Weapon . | . . . . . . . Piercing Weapon . | . . . . . . . Special Melee Weapon . | . . . . . . . Unidentified Prototypes 5 | . . . . . 5 . Parts Lost 13 | . . . . . 4 9 Power 1 | . . . . . . 1 Propulsion 2 | . . . . . 1 1 Utility 7 | . . . . . 2 5 Weapon 3 | . . . . . 1 2 Highest Loss Streak 9 | . . . . . 2 9 To Critical Strikes . | . . . . . . . Average Slot Usage (%) 96 | . 99 100 100 100 96 77 Engine 11 | . 14 14 14 14 9 6 Treads 3 | . 9 . . . 2 . Wheel 17 | . 18 28 28 28 14 8 Device 20 | . 14 14 14 14 25 22 Storage 11 | . 14 14 14 14 9 8 Processor 5 | . . . . . 9 7 Protection 4 | . . . . . 7 7 Energy Gun 1 | . . . . . 3 1 Ballistic Gun 19 | . 27 28 28 27 13 7 Naked Turns 21 | . . . . . . 21 Heaviest Build 111 | 13 88 49 87 94 111 111 Greatest Support 40 | 40 40 20 20 32 40 28 Greatest Overweight (x) 5 | . 4 2 4 5 3 3 Average Overweight (x) 2 | . 1 2 2 2 2 2 Largest Inventory Capacity 25 | 8 25 20 25 25 25 25 Average Capacity 22 | 7 17 20 21 25 25 22 Most Carried 25 | 8 20 20 23 25 25 25 Average Carried 20 | 4 14 20 20 24 24 22 Final Capacity 25 | 8 20 20 25 25 25 5 Final Carried 25 | 8 20 20 22 25 25 3 Class Distribution -------------------- 38% | Mutant 33% | Scavenger-Skirmisher 24% | Scavenger-Mutant 3% | Skirmisher Dominant Class ---------------- Mutant | -10/Materials Scavenger-Mutant | -10/Mines Mutant | -10/Exiles Scavenger-Skirmisher | -9/Mines Scavenger-Skirmisher | -8/Materials Mutant | -8/Garrison Resources | -11 -10 -10 -10 -9 -8 -8 ----------- Run | Jun Mat Min Exi Min Mat Gar Matter Collected 1906 | 288 243 30 20 145 1116 64 Remotely . | . . . . . . . Salvage Created 2402 | 108 543 . . 221 1450 80 Parts 122 | 4 26 . . 10 81 1 Haulers Intercepted 7 | . 2 . . . 5 . Recyclers Shooed 2 | 1 . . . 1 . . Parts Field Recycled . | . . . . . . . Retrieved Matter . | . . . . . . . Parts Self-Destructed . | . . . . . . . Prevented . | . . . . . . . Kills | -11 -10 -10 -10 -9 -8 -8 ------- Run | Jun Mat Min Exi Min Mat Gar Combat Hostiles Destroyed 45 | . 10 . . 2 18 15 Guns 27 | . 10 . . 1 12 4 AOE 18 | . . . . 1 6 11 Classes Destroyed 13 | 2 5 . . 1 4 1 Worker 4 | . . . . . 4 . Builder 2 | . . . . . 2 . Tunneler 1 | 1 . . . . . . Hauler 7 | . 2 . . . 5 . Recycler 7 | 1 1 . . 2 3 . Operator 3 | . 2 . . . 1 . Watcher 4 | . 1 . . . 3 . Swarmer 8 | . 5 . . . . 3 Grunt 16 | . 5 . . 1 10 . Brawler 1 | . . . . 1 . . Sentry 7 | . . . . . 7 . Hunter 1 | . . . . . 1 . Assembled 12 | . . . . . . 12 Best Kill Streak 8 | 2 3 . . 2 8 7 Combat Bots Only 7 | . 2 . . 2 5 7 Max Kills in Single Turn 3 | 1 1 . . 1 3 3 Gunslinging 1 | . . . . . 1 . Exploded 3 | . . . . 1 3 3 Melee . | . . . . . . . Uniques/NPCs Destroyed . | . . . . . . . Combat | -11 -10 -10 -10 -9 -8 -8 -------- Run | Jun Mat Min Exi Min Mat Gar Damage Taken 2586 | . 419 . . 8 911 1248 Core 656 | . 91 . . 8 119 438 Absorbed by Shields 264 | . . . . . 204 60 Regen/Repaired (Parts) 111 | . 35 . . . 76 . Core Remaining (%) 80 | 100 . . . 60 . . Volleys Fired 201 | 9 71 . . 17 74 30 Largest 2 | 2 2 . . 2 2 2 Hottest 81 | 40 40 . . 53 81 61 Shots Fired 369 | 18 141 . . 31 144 35 Gun 346 | 18 140 . . 29 137 22 Cannon . | . . . . . . . Launcher 23 | . 1 . . 2 7 13 Special . | . . . . . . . Kinetic 309 | 18 140 . . 29 107 15 Thermal 19 | . . . . . 19 . Explosive 23 | . 1 . . 2 7 13 Electromagnetic 18 | . . . . . 11 7 Robot Hit Streak 13 | 6 12 . . 5 13 13 Robot Miss Streak 6 | 2 6 . . 3 2 5 Penetration Max . | . . . . . . . Secondary Targets 3 | . 2 . . . 1 . Max Gunslinging Chain 1 | . 1 . . . 1 . Shots Hit Robots 238 | 13 83 . . 20 104 18 Core Hits 144 | 4 35 . . 8 72 25 Critical Kills . | . . . . . . . Critical Parts Destroyed 2 | . 2 . . . . . Critical Strikes 3 | . 2 . . . 1 . Burn 1 | . . . . . 1 . Destroy 2 | . 2 . . . . . Melee Attacks . | . . . . . . . Impact . | . . . . . . . Slashing . | . . . . . . . Piercing . | . . . . . . . Sneak Attacks . | . . . . . . . Combat Hostiles . | . . . . . . . Follow-up Attacks . | . . . . . . . Damage Inflicted 4859 | 107 806 . . 266 2557 1123 Guns 3042 | 107 795 . . 223 1693 224 Cannons . | . . . . . . . Explosions 1753 | . . . . 43 864 846 Melee . | . . . . . . . Ramming 64 | . 11 . . . . 53 Kinetic 2551 | 107 795 . . 223 1260 166 Thermal 439 | . . . . . 439 . Explosive 1485 | . . . . 43 596 846 Electromagnetic 320 | . . . . . 262 58 Impact . | . . . . . . . Slashing . | . . . . . . . Piercing . | . . . . . . . Highest Corruption . | . . . . . . . Average Corruption . | . . . . . . . Corruption Purged . | . . . . . . . Corruption Blocked . | . . . . . . . Overload Shots . | . . . . . . . Overflow Damage 5 | . . . . . . 5 Projectiles . | . . . . . . . Explosions 5 | . . . . . . 5 Melee . | . . . . . . . Knockbacks . | . . . . . . . Impact . | . . . . . . . Kinetic . | . . . . . . . Secondary . | . . . . . . . Self-Inflicted Damage 195 | . . . . . 79 116 Shots 6 | . . . . . 2 4 Rammed 5 | . 2 . . . . 3 Targets Rammed 5 | . 2 . . . . 3 Kicked . | . . . . . . . Crushed . | . . . . . . . Highest Temperature 91 | . 15 . . 16 91 . Average Temperature 19 | . 7 . . 7 24 . Received Heat Transfer 634 | . 135 . . . 399 100 Siege Activations . | . . . . . . . Robots Corrupted . | . . . . . . . Combat Hostiles . | . . . . . . . Parts Fried 1 | . . . . . 1 . Impact Corruptions . | . . . . . . . Robots Melted . | . . . . . . . Combat Hostiles . | . . . . . . . Parts Melted . | . . . . . . . Heat Transferred 755 | . . . . . 755 . Parts Sabotaged . | . . . . . . . Parts Stolen . | . . . . . . . Parts Stripped . | . . . . . . . Power Chain Reactions 1 | . . . . . 1 . Missiles Intercepted . | . . . . . . . Alert | -11 -10 -10 -10 -9 -8 -8 ------- Run | Jun Mat Min Exi Min Mat Gar Peak Influence 281 | 10 173 25 . 78 224 281 Initial 52 | . 6 25 . . 29 52 Average 95 | 2 77 25 . 47 111 177 Maximum Alert Level 1 | . . . . . 1 1 Low Security (%) 88 | 100 100 100 . 100 82 59 Level 1 11 | . . . . . 17 40 Level 2 . | . . . . . . . Level 3 . | . . . . . . . Level 4 . | . . . . . . . Level 5 . | . . . . . . . High Security . | . . . . . . . Max Security . | . . . . . . . Squads Dispatched 8 | . 4 . . . 4 . Investigation 3 | . 2 . . . 1 . Extermination . | . . . . . . . Reinforcement 2 | . 2 . . . . . Assault . | . . . . . . . Garrison 3 | . . . . . 3 . Intercept . | . . . . . . . Searches Triggered . | . . . . . . . Construction Impeded . | . . . . . . . Haulers Reinforced . | . . . . . . . Active Scanning Responses . | . . . . . . . Cargo Convoy Interrupts . | . . . . . . . Stealth | -11 -10 -10 -10 -9 -8 -8 --------- Run | Jun Mat Min Exi Min Mat Gar Distress Signals 5 | . 4 . . . 1 . Communications Jammed . | . . . . . . . Distress Signals . | . . . . . . . Times Spotted 83 | . 24 . . 5 23 31 Peak Tracking Total 19 | . 4 . . 3 5 19 Tactical Retreats 5 | . 4 . . . . 1 Traps | -11 -10 -10 -10 -9 -8 -8 ------- Run | Jun Mat Min Exi Min Mat Gar Traps Triggered 3 | . 2 . . . . 1 Indirectly . | . . . . . . . Trap Hack Attempts . | . . . . . . . Triggered . | . . . . . . . Disarmed . | . . . . . . . Reprogrammed . | . . . . . . . Reused . | . . . . . . . Traps Extracted . | . . . . . . . Installed . | . . . . . . . Triggered . | . . . . . . . Machines | -11 -10 -10 -10 -9 -8 -8 ---------- Run | Jun Mat Min Exi Min Mat Gar Machines Disabled 6 | . . . . . 5 1 Max in Single Turn 3 | . . . . . 3 1 Machines Repaired . | . . . . . . . Machines Sabotaged . | . . . . . . . Overloaded Fab Kills . | . . . . . . . Hacking | -11 -10 -10 -10 -9 -8 -8 --------- Run | Jun Mat Min Exi Min Mat Gar Machines Accessed 20 | . 7 . 2 . 11 . Terminals 12 | . 5 . . . 7 . Fabricators . | . . . . . . . Repair Stations 2 | . 1 . . . 1 . Recycling Units 2 | . 1 . . . 1 . Scanalyzers 1 | . . . . . 1 . Garrison Access 1 | . . . . . 1 . Total Hacks 54 | . 21 . 2 . 31 . Successful 22 | . 6 . 2 . 14 . Failed 31 | . 14 . . . 17 . Catastrophic 9 | . 4 . . . 5 . Database Lockouts 1 | . 1 . . . . . Manual 23 | . 15 . 1 . 7 . Terminals 36 | . 16 . . . 20 . Fabricators . | . . . . . . . Repair Stations 6 | . 3 . . . 3 . Recycling Units 6 | . 2 . . . 4 . Scanalyzers 3 | . . . . . 3 . Garrison Access 1 | . . . . . 1 . Terminal Hacks 11 | . 2 . 2 . 7 . Record 1 | . . . 1 . . . Robot Schematic 1 | . 1 . . . . . Prototype ID Bank 2 | . . . . . 2 . Terminal Index 1 | . . . . . 1 . Unreport Threat 3 | . 1 . . . 2 . Recall Investigation 2 | . . . . . 2 . EX-Prototype ID Bank 1 | . . . 1 . . . Fabricator Hacks . | . . . . . . . Repair Station Hacks 4 | . 2 . . . 2 . Scan Component 2 | . 1 . . . 1 . Repair 2 | . 1 . . . 1 . Recycling Unit Hacks 1 | . . . . . 1 . Retrieve Components 1 | . . . . . 1 . Scanalyzer 1 | . . . . . 1 . Insert Component 1 | . . . . . 1 . Garrison Access Hacks 1 | . . . . . 1 . Unlock Access 1 | . . . . . 1 . Unauthorized Hacks 4 | . 2 . . . 2 . Terminals 2 | . . . . . 2 . Botnet 2 | . . . . . 2 . Fabricators . | . . . . . . . Repair Stations . | . . . . . . . Recycling Units 2 | . 2 . . . . . Monitor 1 | . 1 . . . . . Mask 1 | . 1 . . . . . Scanalyzers . | . . . . . . . Garrison Access . | . . . . . . . Data Cores Recovered . | . . . . . . . Used . | . . . . . . . Hacking Detections 16 | . 6 . . . 10 . Full Trace Events 2 | . 1 . . . 1 . Feedback Events . | . . . . . . . Feedback Blocked . | . . . . . . . Robot Schematics Acquired 1 | . 1 . . . . . Robots Built . | . . . . . . . Authchips . | . . . . . . . Time . | . . . . . . . Total Robot Build Rating . | . . . . . . . Part Schematics Acquired . | . . . . . . . Parts Built . | . . . . . . . Authchips . | . . . . . . . Time . | . . . . . . . Total Part Build Rating . | . . . . . . . Parts Repaired 2 | . 1 . . . 1 . Time 58 | . 26 . . . 32 . Parts Recycled . | . . . . . . . Recycled Matter . | . . . . . . . Retrieved Matter . | . . . . . . . Retrieved Components 3 | . . . . . 3 . Parts Scanalyzed 1 | . . . . . 1 . Part Schematics Acquired . | . . . . . . . Parts Damaged . | . . . . . . . Bothacking | -11 -10 -10 -10 -9 -8 -8 ------------ Run | Jun Mat Min Exi Min Mat Gar Used RIF Installer . | . . . . . . . Robots Hacked . | . . . . . . . Non-combat . | . . . . . . . Combat . | . . . . . . . Robot Hacks Applied . | . . . . . . . Relay Couplers Released . | . . . . . . . Fabnet Peak Effective % . | . . . . . . . Robots Rewired . | . . . . . . . Allies Hacked . | . . . . . . . Hacks Repelled . | . . . . . . . Allies | -11 -10 -10 -10 -9 -8 -8 -------- Run | Jun Mat Min Exi Min Mat Gar Total Allies . | . . . . . . . Largest Group . | . . . . . . . Highest-Rated Group . | . . . . . . . Highest-Rated Ally . | . . . . . . . Total Orders 1 | . . . . . 1 . EXPLORE 1 | . . . . . 1 . Ally Attacks . | . . . . . . . Total Damage . | . . . . . . . Kills . | . . . . . . . Allies Corrupted . | . . . . . . . Allies Melted . | . . . . . . . Intel | -11 -10 -10 -10 -9 -8 -8 ------- Run | Jun Mat Min Exi Min Mat Gar Robot Analysis Total . | . . . . . . . Derelict Logs Recovered 1 | . . . . 1 . . Drone Launches 1 | . . . . . 1 . Drone Recoveries . | . . . . . . . Exploration | -11 -10 -10 -10 -9 -8 -8 ------------- Run | Jun Mat Min Exi Min Mat Gar Turns Passed 4208 | 137 1096 86 366 300 1968 255 Spaces Moved 2330 | 58 630 77 301 174 944 146 Core 41 | 1 . . . . . 40 Treads 212 | 57 153 . . . 2 . Legs . | . . . . . . . Wheels 2077 | . 477 77 301 174 942 106 Hover . | . . . . . . . Flight . | . . . . . . . Fastest Speed 50 | 50 110 110 110 130 130 50 Average Speed 134 | 158 129 110 118 134 144 117 Slowest Speed 320 | 160 320 110 140 175 320 145 Overloaded Moves . | . . . . . . . Propulsion Burnouts . | . . . . . . . Robots Hopped . | . . . . . . . Cave-ins Triggered . | . . . . . . . Exploration Rate (%) 49 | 6 90 24 70 41 90 27 Regions Visited 6 Branch Regions 3 Pre-discovered Areas 1 | . . . 1 . . . Known Exits Taken 1 | . . . . . 1 . Unknown Exits Taken 5 | 1 1 1 1 1 . . Scrap Searched 2 | . . 1 . 1 . . Spaces Dug 26 | . 13 . . . . 13 Terrain Destroyed 145 | . 13 . . 18 26 88 Melee . | . . . . . . . Projectile . | . . . . . . . AOE 145 | . 13 . . 18 26 88 Terrain Rammed . | . . . . . . . Walls Destroyed . | . . . . . . . Machines Disabled . | . . . . . . . Actions | -11 -10 -10 -10 -9 -8 -8 --------- Run | Jun Mat Min Exi Min Mat Gar Total 3108 | 86 791 80 311 210 1433 197 Wait 356 | 4 57 . . 7 286 2 Move 2325 | 57 629 76 300 173 944 146 Hop . | . . . . . . . Pick Up 62 | 9 16 2 5 3 26 1 Fast Attach 20 | 6 1 . . 3 9 1 Attach 7 | 1 . . . . 5 1 Detach . | . . . . . . . Swap 71 | . 8 . 2 3 55 3 Drop 53 | . 7 2 4 4 34 2 Fire 201 | 9 71 . . 17 74 30 Melee . | . . . . . . . Ram 3 | . . . . . . 3 Kick . | . . . . . . . Crush 2 | . 2 . . . . . Escape Stasis 8 | . . . . . . 8 Rewire . | . . . . . . . Trap . | . . . . . . . Miscellaneous . | . . . . . . . Route ------- -11/Junkyard -10/Materials (discovered 4 exits: [*Mat x3] / [*Min]) -10/Mines -10/Exiles -9/Mines -8/Materials (discovered 4 exits: *Fac x3 / Gar) -8/Garrison (discovered 1 exit: [*Mat]) History --------- Turn | Location | Event 10 | -11/Junkyard | Discovered new exit (range 16) 138 | -11/Junkyard | Entered Materials 233 | -10/Materials | Discovered new exit (range 7) 310 | -10/Materials | Build established: Mutant 412 | -10/Materials | Discovered new exit (range 5) 888 | -10/Materials | Central database locked down 980 | -10/Materials | Discovered new exit (range 9) 1126 | -10/Materials | Repaired Wheel 1193 | -10/Materials | Discovered new exit (range 8) 1234 | -10/Materials | Entered Mines 1270 | -10/Mines | Found a damaged Exp. Sensor Array with a note attached 1272 | -10/Mines | Found Prototype Device 1316 | -10/Mines | Deemed a non-threat by the Exiles lab entrance 1316 | -10/Mines | Discovered new exit (range 5) 1320 | -10/Mines | Entered Exiles 1362 | -10/Exiles | Met 8R-AWN 1381 | -10/Exiles | Met EX-HEX 1414 | -10/Exiles | Met EX-BIN 1429 | -10/Exiles | Aligned with FarCom system 1430 | -10/Exiles | Given EX-Vault access code 1437 | -10/Exiles | Build established: Scavenger-Mutant 1457 | -10/Exiles | Opened EX-Vault 1464 | -10/Exiles | Found Supersonic Drone Bay 1486 | -10/Exiles | Warned to stay clear of 0b10 Research branches 1517 | -10/Exiles | Met EX-DEC 1523 | -10/Exiles | Learned location of Zion (-7) 1673 | -10/Exiles | Discovered new exit (range 10) 1686 | -10/Exiles | Left Exiles lab with Supersonic Drone Bay 1686 | -10/Exiles | Entered Mines 1975 | -9/Mines | Discovered new exit (range 10) 1979 | -9/Mines | Learned location of 2 exits from Materials 1986 | -9/Mines | Entered Materials 1986 | -8/Materials | Evolved 4 slots: Utility x4 1987 | -8/Materials | Identified exit to Factory 2153 | -8/Materials | Identified Exp. Sensor Array 2424 | -8/Materials | Build established: Scavenger-Skirmisher 2935 | -8/Materials | Discovered exit to Factory (range 14) 3559 | -8/Materials | Repaired Autogun 3592 | -8/Materials | Build established: Scavenger-Mutant 3715 | -8/Materials | Garrison activated, responded to threat 3954 | -8/Materials | Identified exit to Garrison 3954 | -8/Materials | Entered Garrison 3975 | -8/Garrison | Triggered checkpoint 4050 | -8/Garrison | Build established: Mutant 4071 | -8/Garrison | Assembled breached garrison interior 4151 | -8/Garrison | Destroyed 7 combat bots 4177 | -8/Garrison | Core integrity fell below 50% 4188 | -8/Garrison | Core integrity fell below 20% 4203 | -8/Garrison | Discovered new exit (range 8) 4209 | -8/Garrison | Destroyed by as-15958 with Assembled Heavy Rifle Last Messages --------------- 04180_ A bubble of rippling energy engulfs the area. 04180_ Field strength at 93. 04180_ Field strength at 86. 04181_ Field strength at 79. 04181_ Dropped Huge Storage Unit. 04182_ Dropped Humpback. 04182_ Field strength at 72. 04183_ Field strength at 65. 04183_ Acquired Missile Launcher. 04184_ Field strength at 58. 04186_ Field strength at 44. 04186_ Arm. Huge Wheel destroyed. 04187_ Field strength at 37. 04188_ Field strength at 30. 04189_ Acquired 16 matter. 04189_ Field strength at 23. 04189_ Acquired 20 matter. 04190_ Field strength at 16. 04203_ EXIT=FOUND 04208_ as-81357 destroyed. Map ----- +----------------------------------------------------+ | ?????????????????????????????????????????????????? | | ?????????????????????????????????????????????????? | | ?????????????????????????????????????????????????? | | ?????????????????????????????????????????????????? | | ?????????????????????????????????????????????????? | | ?????????????????????????????????????????????????? | | ?????????????????????????????????????????????????? | | ?????????????????????????????????????????????????? | | ?????????????????????????????????????????????????? | | ?????????????????????????????????????????????????? | | ?????????????????????????????????????????????????? | | ?????????????????????????????????????????????????? | | ?????????????????????????????????????????????????? | | ?????????????????????????????????????????????????? | | ?????????????????????????????????????????????????? | | ?????????????????????????????????????????????????? | | ??????????????????????????????????????s??????????? | | ???????????????????# ?#????##?????????s??????????? | | ????????????????????#< #### ####??????s??????????? | | ?????????????????????# a #?????????????????? | | ????????????????????# # %# ###???????????????? | | ???????????????????????# a #### #???????????????? | | ???????????????????????? ???# #???????????????? | | ???????????????????????? ???# #???????????????? | | ????????????????????????# #???# #???????????????? | | ????????????????????????#@#???# ##???????????????? | | ????????????????????????###???# #??###??????????? | | ??????????????????????????????# #### #??????????? | | ??????????????????????????? # #??????????? | | ??????????????????????????##### ##### #??????????? | | ??????????????????????????????? ????# #???######## | | ??????????????????????????????# ????# #???# ## *%= | | ??????????????????????????????# ????# #?### ## %[ | | ??????????????????????????????## #### ### # % | | ???????????????????????????????# # # % | | ??????????????????????????????# ## # # # % | | ?????????????????????????????????######## ## | | ????????????????????????????????????????### ## | | ??????????????????????????????????????????# # | | ????????????????????????????????????????% # | | ?????????????????????????????????????????# # | | ??????????????????????????????????????????# | | ??????????????????????????????????????????# ## | | ??????????????????????????????????????????# ?# | | ????????????????????????????????????????# | | ????????????????????????????????????????# ^ | | ????????????????????????????????????????# | | ????????????????????????????????????????## ##% | | ?????????????????????????????????????????# ?# | | ?????????????????????????????????????????# ??##### | +----------------------------------------------------+ Best States ------------- Heat Dissipation 45 Energy Generation 12 Energy Capacity 265 Matter Stores 300 Matter Capacity 300 Sight Range 16 Terrain Scan Range 16 Terrain Scan Density 10 Armor Coverage 225 Evasion (%) 50 Targeting Accuracy 5 Recoil Reduction 2 Item Schematics ----------------- None Robot Schematics ------------------ M-13 Machinist | -10/Materials | Hacked Fabricated ------------ Nothing Alien Tech Used ----------------- None Achievements -------------- None Challenges ------------ None Game ------ Seed CompositeAblativeChip Manual? 0 Play Time 00:47:16 Cumulative 323.6 hours Start 2023.09.18 @ 09:12:12 End 2023.09.18 @ 10:13:01 Sessions 1 Manual Loads 0 Difficulty Rogue Special Mode None Game No. 208 Rogue 205 Adventurer 3 Explorer 0 Win Type - Total 6 Types 5/0/1/0/0/0/0/0/0 Lore% 72 Gallery% 76 Achievement% 64 Wizard Run 0 Options --------- ASCII 0 Keyboard 0 Movement Numpad Keybinds 0 Fullscreen 1 Font 18/SmallcapsGlow Map View 76x50 Tactical HUD 1 Map Filters NONE Filters NONE Steam 1 RUN: 088f766c-a859-4c27-9785-709ecadb1fbf